fUSD/lending_fUSD_20250202
["ID","MTS","AMOUNT","RATE_DAILY","PERIOD"]
[351311535,1738511486627,-500.0,0.00012185,2]
[351311536,1738511486637,-500.0,0.00012185,2]
[351311537,1738511486646,-596.58,0.00012185,2]
[351311538,1738511486656,-500.0,0.00012185,2]
[351311539,1738511486667,-500.0,0.00012185,2]
[351311540,1738511486676,-710.49,0.00012185,2]
[351311541,1738511486686,-1187.42,0.00012186,2]
[351311542,1738511486696,-817.82,0.00012186,2]
[351311543,1738511486706,-607.41,0.00012186,2]
[351311544,1738511486715,-500.0,0.00012186,2]
[351311545,1738511486725,-1230.03,0.00012186,2]
[351311546,1738511486734,-615.34,0.00012186,2]
[351311547,1738511486743,-714.07,0.00012186,2]
[351311548,1738511486754,-1449.17,0.00012186,2]
[351311549,1738511486764,-500.0,0.00012186,2]
[351311550,1738511486775,-1251.19,0.00012186,2]
[351311551,1738511486785,-1405.84,0.00012186,2]
[351311552,1738511486795,-1494.61,0.00012186,2]
[351311553,1738511486806,-828.44,0.00012186,2]
[351311554,1738511486815,-500.0,0.00012186,2]
[351311555,1738511486825,-676.04,0.00012186,2]
[351311556,1738511486834,-535.23,0.00012186,2]
[351311557,1738511486844,-1723.36,0.00012186,2]
[351311558,1738511486854,-854.84,0.00012186,2]
[351311559,1738511486864,-1459.08,0.00012186,2]
[351311560,1738511486874,-1678.19,0.00012186,2]
[351311561,1738511486884,-571.62,0.00012186,2]
[351311562,1738511486894,-780.5,0.00012186,2]
[351311563,1738511486903,-500.0,0.00012186,2]
[351311564,1738511486914,-1296.82,0.00012186,2]
[351311565,1738511486923,-1446.98,0.00012186,2]
[351311566,1738511486933,-500.0,0.00012186,2]
[351311567,1738511486943,-618.81,0.00012186,2]
[351311568,1738511486953,-730.18,0.00012186,2]
[351311569,1738511486963,-609.86,0.00012186,2]
[351311570,1738511486972,-978.46,0.0001219,2]
[351311571,1738511486981,-500.0,0.0001219,2]
[351311572,1738511486992,-518.13,0.0001219,2]
[351311573,1738511487001,-203.69643374,0.0001219,2]
[351311574,1738511487011,-500.0,0.0001219,2]
[351311575,1738511487021,-1147.35,0.0001219,2]
[351311576,1738511487030,-668.46,0.0001219,2]
[351311577,1738511487040,-1211.37,0.0001219,2]
[351311578,1738511487050,-500.0,0.0001219,2]
[351311579,1738511487060,-594.76,0.0001219,2]
[351311580,1738511487069,-1093.43,0.0001219,2]
[351311581,1738511487079,-500.0,0.0001219,2]
[351311582,1738511487088,-500.0,0.0001219,2]
[351311583,1738511487099,-500.0,0.0001219,2]
[351311584,1738511487109,-500.0,0.0001219,2]
[351311585,1738511487119,-500.0,0.0001219,2]
[351311586,1738511487128,-829.51,0.0001219,2]
[351311587,1738511487138,-500.0,0.0001219,2]
[351311588,1738511487147,-500.0,0.0001219,2]
[351311589,1738511487157,-620.10955851,0.0001219,2]
[351311590,1738511487168,-1097.71,0.0001219,2]
[351311591,1738511487177,-1068.84,0.0001219,2]
[351311592,1738511487187,-500.0,0.0001219,2]
[351311593,1738511487197,-500.0,0.0001219,2]
[351311594,1738511487206,-500.0,0.0001219,2]
[351311595,1738511487215,-500.0,0.0001219,2]
[351311596,1738511487225,-561.08,0.0001219,2]
[351311597,1738511487235,-500.0,0.0001219,2]
[351311598,1738511487244,-500.0,0.0001219,2]
[351311599,1738511487253,-515.69,0.0001219,2]
[351311600,1738511487263,-653.67,0.0001219,2]
[351311601,1738511487272,-1093.31,0.0001219,2]
[351311602,1738511487282,-1053.18,0.0001219,2]
[351311603,1738511487292,-500.0,0.0001219,2]
[351311604,1738511487302,-1273.51,0.0001219,2]
[351311605,1738511487311,-522.28,0.0001219,2]
[351311606,1738511487321,-1239.31,0.0001219,2]
[351311607,1738511487330,-740.34,0.0001219,2]
[351311608,1738511487340,-500.0,0.0001219,2]
[351311609,1738511487349,-500.0,0.0001219,2]
[351311610,1738511487360,-644.61,0.0001219,2]
[351311611,1738511487369,-913.35,0.0001219,2]
[351311612,1738511487379,-1062.0,0.0001219,2]
[351311613,1738511487389,-1115.18,0.0001219,2]
[351311614,1738511487399,-945.68,0.0001219,2]
[351311615,1738511487409,-607.69,0.0001219,2]
[351311616,1738511487419,-500.0,0.0001219,2]
[351311617,1738511487428,-522.96,0.0001219,2]
[351311618,1738511487438,-1035.26,0.0001219,2]
[351311619,1738511487448,-500.0,0.0001219,2]
[351311620,1738511487458,-2196.81,0.0001219,2]
[351311621,1738511487468,-500.0,0.0001219,2]
[351311622,1738511487478,-1325.26,0.0001219,2]
[351311623,1738511487490,-975.31,0.0001219,2]
[351311624,1738511487500,-1985.37,0.0001219,2]
[351311625,1738511487510,-918.08,0.0001219,2]
[351311626,1738511487520,-2083.26,0.0001219,2]
[351311627,1738511487531,-1965.57,0.0001219,2]
[351311628,1738511487541,-1323.45,0.0001219,2]
[351311629,1738511487551,-1635.63,0.0001219,2]
[351311630,1738511487561,-500.0,0.0001219,2]
[351311631,1738511487572,-774.16,0.0001219,2]
[351311632,1738511487582,-5662.33,0.0001219,2]
[351311633,1738511487591,-782.48,0.0001219,2]
[351311634,1738511487601,-7030.17,0.0001219,2]
[351311635,1738511487611,-2514.52,0.0001219,2]
[351311636,1738511487620,-681.48,0.0001219,2]
[351311637,1738511487630,-790.42,0.0001219,2]
[351311638,1738511487640,-3657.25,0.0001219,2]
[351311639,1738511487651,-3049.12,0.0001219,2]
[351311640,1738511487661,-500.0,0.0001219,2]
[351311641,1738511487671,-1745.16,0.0001219,2]
[351311642,1738511487681,-1031.35,0.0001219,2]
[351311643,1738511487691,-1816.81,0.0001219,2]
[351311644,1738511487701,-528.0,0.0001219,2]
[351311645,1738511487711,-602.22,0.0001219,2]
[351311646,1738511487720,-4052.48,0.0001219,2]
[351311647,1738511487730,-500.0,0.0001219,2]
[351311648,1738511487739,-1474.86,0.0001219,2]
[351311649,1738511487749,-4337.5,0.0001219,2]
[351311650,1738511487759,-1297.61,0.0001219,2]
[351311651,1738511487769,-1453.24,0.0001219,2]
[351311652,1738511487779,-1696.27,0.0001219,2]
[351311653,1738511487788,-1292.86,0.0001219,2]
[351311654,1738511487799,-1155.8,0.0001219,2]
[351311655,1738511487809,-734.3,0.0001219,2]
[351311656,1738511487819,-1512.01,0.0001219,2]
[351311657,1738511487829,-1336.03,0.0001219,2]
[351311658,1738511487839,-500.0,0.0001219,2]
[351311659,1738511487849,-686.62,0.0001219,2]
[351311660,1738511487859,-1393.61,0.0001219,2]
[351311661,1738511487869,-500.0,0.0001219,2]
[351311662,1738511487880,-1657.23,0.0001219,2]
[351311663,1738511487890,-1120.37,0.0001219,2]
[351311664,1738511487900,-823.51,0.0001219,2]
[351311665,1738511487909,-568.8550772,0.00012191,2]
[351311666,1738511487921,-500.0,0.00012191,2]
[351311667,1738511487931,-500.0,0.00012191,2]
[351311668,1738511487940,-500.0,0.00012191,2]
[351311669,1738511487949,-663.36,0.00012191,2]
[351311670,1738511487959,-500.0,0.00012191,2]
[351311671,1738511487968,-500.0,0.00012191,2]
[351311672,1738511487978,-500.0,0.00012191,2]
[351311673,1738511487987,-500.0,0.00012191,2]
[351311674,1738511487997,-698.15,0.00012191,2]
[351311675,1738511488006,-500.0,0.00012191,2]
[351311676,1738511488015,-500.0,0.00012191,2]
[351311677,1738511488025,-500.0,0.00012191,2]
[351311678,1738511488035,-500.0,0.00012191,2]
[351311679,1738511488045,-500.0,0.00012191,2]
[351311680,1738511488054,-500.0,0.00012191,2]
[351311681,1738511488064,-500.0,0.00012191,2]
[351311682,1738511488074,-500.0,0.00012191,2]
[351311683,1738511488083,-500.0,0.00012191,2]
[351311684,1738511488093,-500.0,0.00012191,2]
[351311685,1738511488103,-705.16,0.00012191,2]
[351311686,1738511488112,-298.15404165,0.00012191,2]
[351311687,1738511488122,-531.92,0.00012191,2]
[351311688,1738511488132,-500.0,0.00012191,2]
[351311689,1738511488142,-500.0,0.00012191,2]
[351311690,1738511488152,-500.0,0.00012191,2]
[351311691,1738511488162,-500.0,0.00012191,2]
[351311692,1738511488172,-500.0,0.00012191,2]
[351311693,1738511488182,-500.0,0.00012191,2]
[351311694,1738511488191,-341.25060121,0.00012191,2]
[351311695,1738511488201,-500.0,0.00012191,2]
[351311696,1738511488210,-500.0,0.00012191,2]
[351311697,1738511488220,-719.85,0.00012191,2]
[351311698,1738511488230,-594.38,0.00012191,2]
[351311699,1738511488239,-500.0,0.00012191,2]
[351311700,1738511488249,-563.78,0.00012191,2]
[351311701,1738511488259,-500.0,0.00012191,2]
[351311702,1738511488269,-500.0,0.00012191,2]
[351311703,1738511488279,-752.42,0.00012191,2]
[351311704,1738511488289,-560.79822995,0.00012191,2]
[351311705,1738511488299,-500.0,0.00012191,2]
[351311706,1738511488309,-500.0,0.00012191,2]
[351311707,1738511488320,-300.49090828,0.00012191,2]
[351311708,1738511488329,-743.8,0.00012191,2]
[351311709,1738511488339,-500.0,0.00012191,2]
[351311710,1738511488350,-500.0,0.00012191,2]
[351311711,1738511488360,-500.0,0.00012191,2]
[351311712,1738511488369,-500.0,0.00012191,2]
[351311713,1738511488379,-500.0,0.00012191,2]
[351311714,1738511488389,-500.0,0.00012191,2]
[351311715,1738511488399,-725.47,0.00012191,2]
[351311716,1738511488409,-764.06,0.00012191,2]
[351311717,1738511488423,-500.0,0.00012191,2]
[351311718,1738511488433,-500.0,0.00012191,2]
[351311719,1738511488443,-500.0,0.00012191,2]
[351311720,1738511488453,-500.0,0.00012191,2]
[351311721,1738511488463,-698.18,0.00012191,2]
[351311722,1738511488473,-791.74,0.00012191,2]
[351311723,1738511488483,-807.25,0.00012191,2]
[351311724,1738511488495,-547.53,0.00012191,2]
[351311725,1738511488507,-500.0,0.00012191,2]
[351311726,1738511488517,-500.0,0.00012191,2]
[351311727,1738511488527,-500.0,0.00012191,2]
[351311728,1738511488537,-500.0,0.00012191,2]
[351311729,1738511488549,-837.73,0.00012191,2]
[351311730,1738511488559,-621.45,0.00012191,2]
[351311731,1738511488570,-631.63,0.00012191,2]
[351311732,1738511488579,-799.17,0.00012191,2]
[351311733,1738511488590,-500.0,0.00012191,2]
[351311734,1738511488600,-771.95,0.00012191,2]
[351311735,1738511488610,-620.52,0.00012191,2]
[351311736,1738511488620,-249.34,0.00012191,2]
[351311737,1738511488629,-588.66,0.00012191,2]
[351311738,1738511488639,-618.87,0.00012191,2]
[351311739,1738511488649,-500.0,0.00012191,2]
[351311740,1738511488659,-616.27,0.00012191,2]
[351311741,1738511488671,-500.0,0.00012191,2]
[351311742,1738511488681,-500.0,0.00012191,2]
[351311743,1738511488691,-565.37,0.00012191,2]
[351311744,1738511488700,-635.57,0.00012191,2]
[351311745,1738511488710,-500.0,0.00012191,2]
[351311746,1738511488719,-500.0,0.00012191,2]
[351311747,1738511488729,-500.0,0.00012191,2]
[351311748,1738511488738,-500.0,0.00012191,2]
[351311749,1738511488747,-500.0,0.00012191,2]
[351311750,1738511488757,-500.0,0.00012191,2]
[351311751,1738511488767,-780.81,0.00012191,2]
[351311752,1738511488777,-584.3,0.00012191,2]
[351311753,1738511488787,-500.0,0.00012191,2]
[351311754,1738511488796,-500.0,0.00012191,2]
[351311755,1738511488807,-591.04,0.00012191,2]
[351311756,1738511488816,-2686.29,0.00012191,2]
[351311757,1738511488826,-500.0,0.00012191,2]
[351311758,1738511488836,-500.0,0.00012191,2]
[351311759,1738511488845,-808.37,0.00012191,2]
[351311760,1738511488855,-794.83,0.00012191,2]
[351311761,1738511488865,-2679.98,0.00012191,2]
[351311762,1738511488875,-500.0,0.00012191,2]
[351311763,1738511488884,-2338.08,0.00012191,2]
[351311764,1738511488894,-1073.23,0.00012191,2]
[351311765,1738511488903,-500.0,0.00012191,2]
[351311766,1738511488914,-500.0,0.00012191,2]
[351311767,1738511488924,-1816.82,0.00012191,2]
[351311768,1738511488934,-1683.79,0.00012191,2]
[351311769,1738511488944,-4162.42,0.00012191,2]
[351311770,1738511488955,-500.0,0.00012191,2]
[351311771,1738511488964,-3144.7,0.00012191,2]
[351311772,1738511488975,-500.0,0.00012191,2]
[351311773,1738511488985,-500.0,0.00012191,2]
[351311774,1738511488995,-575.75,0.00012191,2]
[351311775,1738511489004,-689.19,0.00012191,2]
[351311776,1738511489015,-305.292181,0.00012191,2]
[351311777,1738511489025,-1191.99,0.00012191,2]
[351311778,1738511489035,-527.028003,0.00012191,2]
[351311779,1738511489045,-851.33,0.00012191,2]
[351311780,1738511489054,-677.75,0.00012191,2]
[351311781,1738511489066,-403.6,0.00012191,2]
[351311782,1738511489076,-500.0,0.00012191,2]
[351311783,1738511489085,-1595.43,0.00012191,2]
[351311784,1738511489095,-616.49680177,0.00012191,2]
[351311785,1738511489105,-500.0,0.00012191,2]
[351311786,1738511489115,-2506.07,0.00012191,2]
[351311787,1738511489125,-842.15,0.00012191,2]
[351311788,1738511489135,-539.77,0.00012191,2]
[351311789,1738511489144,-500.0,0.00012191,2]
[351311790,1738511489155,-3571.76,0.00012191,2]
[351311791,1738511489166,-754.64,0.00012191,2]
[351311792,1738511489175,-779.97,0.00012191,2]
[351311793,1738511489185,-319.816449,0.00012191,2]
[351311794,1738511489195,-3366.95,0.00012191,2]
[351311795,1738511489205,-500.0,0.00012191,2]
[351311796,1738511489215,-1388.96,0.00012191,2]
[351311797,1738511489224,-1447.22,0.00012191,2]
[351311798,1738511489235,-1621.42,0.00012191,2]
[351311799,1738511489244,-1280.75,0.00012191,2]
[351311800,1738511489254,-175.36,0.00012191,2]
[351311801,1738511489263,-2398.8,0.00012191,2]
[351311802,1738511489273,-986.99,0.00012191,2]
[351311803,1738511489283,-6074.3,0.00012191,2]
[351311804,1738511489293,-459.81,0.00012191,2]
[351311805,1738511489303,-500.0,0.00012191,2]
[351311806,1738511489312,-886.37,0.00012191,2]
[351311807,1738511489323,-1376.7,0.00012191,2]
[351311808,1738511489333,-500.0,0.00012191,2]
[351311809,1738511489343,-715.29,0.00012191,2]
[351311810,1738511489353,-1472.49,0.00012191,2]
[351311811,1738511489362,-500.0,0.00012191,2]
[351311812,1738511489371,-520.69,0.00012191,2]
[351311813,1738511489381,-2816.92,0.00012191,2]
[351311814,1738511489391,-1537.46,0.00012191,2]
[351311815,1738511489400,-1782.22,0.00012191,2]
[351311816,1738511489410,-2593.44,0.00012191,2]
[351311817,1738511489422,-1707.98,0.00012191,2]
[351311818,1738511489431,-814.03,0.00012191,2]
[351311819,1738511489441,-2517.19,0.00012191,2]
[351311820,1738511489451,-500.0,0.00012191,2]
[351311821,1738511489460,-3495.99,0.00012191,2]
[351311822,1738511489469,-500.0,0.00012191,2]
[351311823,1738511489479,-1097.15,0.00012191,2]
[351311824,1738511489488,-3686.72,0.00012191,2]
[351311825,1738511489500,-873.88,0.00012191,2]
[351311826,1738511489510,-500.0,0.00012191,2]
[351311827,1738511489520,-4032.99,0.00012191,2]
[351311828,1738511489530,-500.0,0.00012191,2]
[351311829,1738511489539,-2612.06,0.00012191,2]
[351311830,1738511489548,-3411.01,0.00012191,2]
[351311831,1738511489557,-2404.98,0.00012191,2]
[351311832,1738511489729,-357.02,0.00012191,2]
[351311833,1738511489740,-500.0,0.00012191,2]
[351311834,1738511489751,-500.0,0.00012191,2]
[351311835,1738511489760,-866.33,0.00012191,2]
[351311836,1738511489770,-3469.55,0.00012191,2]
[351311837,1738511489780,-1883.12,0.00012191,2]
[351311838,1738511489790,-500.0,0.00012191,2]
[351311839,1738511489800,-2058.8,0.00012191,2]
[351311840,1738511489810,-608.43,0.00012191,2]
[351311841,1738511489819,-1319.01,0.00012191,2]
[351311842,1738511489828,-2391.61,0.00012191,2]
[351311843,1738511489839,-4530.32,0.00012191,2]
[351311844,1738511489849,-500.0,0.00012191,2]
[351311845,1738511489859,-1228.14,0.00012191,2]
[351311846,1738511489869,-633.36384848,0.00012191,2]
[351311847,1738511489878,-6198.62,0.00012191,2]
[351311848,1738511489889,-500.0,0.00012191,2]
[351311849,1738511489898,-500.0,0.00012191,2]
[351311850,1738511489908,-4177.74,0.00012191,2]
[351311851,1738511489919,-853.08,0.00012191,2]
[351311852,1738511489929,-500.0,0.00012191,2]
[351311853,1738511489938,-411.44460693,0.00012191,2]
[351311854,1738511489947,-326.66965725,0.00012191,2]
[351311855,1738511489957,-500.0,0.00012191,2]
[351311856,1738511489967,-669.71,0.00012191,2]
[351311857,1738511489977,-333.65,0.00012191,2]
[351311858,1738511489987,-539.5,0.00012191,2]
[351311859,1738511489997,-1402.67,0.00012191,2]
[351311860,1738511490007,-1801.53,0.00012191,2]
[351311861,1738511490017,-1549.92,0.00012191,2]
[351311862,1738511490027,-500.0,0.00012191,2]
[351311863,1738511490037,-500.0,0.00012191,2]
[351311864,1738511490047,-820.42,0.00012191,2]
[351311865,1738511490057,-569.44,0.00012191,2]
[351311866,1738511490067,-935.02,0.00012191,2]
[351311867,1738511490077,-816.63,0.00012191,2]
[351311868,1738511490086,-500.0,0.00012191,2]
[351311869,1738511490096,-584.53,0.00012191,2]
[351311870,1738511490107,-885.67,0.00012191,2]
[351311871,1738511490117,-825.88,0.00012211,2]
[351311872,1738511490127,-1332.82,0.00012321,2]
[351311873,1738511490137,-1964.01,0.00012321,2]
[351311874,1738511490147,-2603.59,0.00012321,2]
[351311875,1738511490157,-2889.94,0.00012321,2]
[351311876,1738511490168,-4743.23,0.00012321,2]
[351311877,1738511490179,-10523.62,0.00012321,2]
[351311878,1738511490188,-1554.63,0.00012321,2]
[351311879,1738511490198,-1284.59,0.00012321,2]
[351311880,1738511490207,-1679.21,0.00012321,2]
[351311881,1738511490217,-2652.81,0.00012321,2]
[351311882,1738511490226,-654.17,0.00012321,2]
[351311883,1738511490236,-1718.82,0.00012321,2]
[351311884,1738511490245,-1974.37,0.00012321,2]
[351311885,1738511490255,-2000.83,0.00012321,2]
[351311886,1738511490265,-836.56,0.00012321,2]
[351311887,1738511490274,-1343.39,0.00012321,2]
[351311888,1738511490284,-1186.75,0.00012321,2]
[351311889,1738511490294,-500.0,0.00012322,2]
[351311890,1738511490303,-500.0,0.00012322,2]
[351311891,1738511490313,-596.58,0.00012322,2]
[351311892,1738511490322,-500.0,0.00012322,2]
[351311893,1738511490332,-500.0,0.00012322,2]
[351311894,1738511490342,-710.49,0.00012322,2]
[351311895,1738511490351,-151.0,0.00012323,2]
[351311896,1738511490361,-1187.42,0.00012323,2]
[351311897,1738511490371,-817.82,0.00012323,2]
[351311898,1738511490381,-607.41,0.00012323,2]
[351311899,1738511490391,-500.0,0.00012323,2]
[351311900,1738511490400,-1230.03,0.00012323,2]
[351311901,1738511490410,-615.34,0.00012323,2]
[351311902,1738511490421,-714.07,0.00012323,2]
[351311903,1738511490431,-1449.17,0.00012323,2]
[351311904,1738511490441,-165.73720238,0.00012323,2]
[351311905,1738511490451,-151.0,0.00012323,2]
[351311906,1738511490461,-1251.19,0.00012323,2]
[351311907,1738511490471,-1405.84,0.00012323,2]
[351311908,1738511490482,-1494.61,0.00012323,2]
[351311909,1738511490492,-828.44,0.00012323,2]
[351311910,1738511490505,-500.0,0.00012323,2]
[351311911,1738511490515,-676.04,0.00012323,2]
[351311912,1738511490525,-535.23,0.00012323,2]
[351311913,1738511490535,-1723.36,0.00012323,2]
[351311914,1738511490547,-854.84,0.00012323,2]
[351311915,1738511490557,-1459.08,0.00012323,2]
[351311916,1738511490567,-1678.19,0.00012323,2]
[351311917,1738511490579,-571.62,0.00012323,2]
[351311918,1738511490588,-780.5,0.00012323,2]
[351311919,1738511490598,-500.0,0.00012323,2]
[351311920,1738511490608,-1296.82,0.00012323,2]
[351311921,1738511490617,-1446.98,0.00012323,2]
[351311922,1738511490627,-500.0,0.00012323,2]
[351311923,1738511490636,-618.81,0.00012323,2]
[351311924,1738511490645,-730.18,0.00012323,2]
[351311925,1738511490655,-609.86,0.00012323,2]
[351311926,1738511490664,-978.46,0.00012327,2]
[351311927,1738511490673,-280.43879307,0.00012327,2]
[351311928,1738511490682,-518.13,0.00012327,2]
[351311929,1738511490691,-500.0,0.00012327,2]
[351311930,1738511490701,-1147.35,0.00012327,2]
[351311931,1738511490711,-668.46,0.00012327,2]
[351311932,1738511490722,-1211.37,0.00012327,2]
[351311933,1738511490731,-500.0,0.00012327,2]
[351311934,1738511490740,-594.76,0.00012327,2]
[351311935,1738511490750,-1093.43,0.00012327,2]
[351311936,1738511490759,-500.0,0.00012327,2]
[351311937,1738511490769,-500.0,0.00012327,2]
[351311938,1738511490779,-500.0,0.00012327,2]
[351311939,1738511490789,-500.0,0.00012327,2]
[351311940,1738511490798,-500.0,0.00012327,2]
[351311941,1738511490808,-829.51,0.00012327,2]
[351311942,1738511490818,-500.0,0.00012327,2]
[351311943,1738511490828,-500.0,0.00012327,2]
[351311944,1738511490838,-1097.71,0.00012327,2]
[351311945,1738511490848,-1068.84,0.00012327,2]
[351311946,1738511490858,-500.0,0.00012327,2]
[351311947,1738511490868,-500.0,0.00012327,2]
[351311948,1738511490878,-500.0,0.00012327,2]
[351311949,1738511490887,-500.0,0.00012327,2]
[351311950,1738511490898,-561.08,0.00012327,2]
[351311951,1738511490907,-500.0,0.00012327,2]
[351311952,1738511490918,-500.0,0.00012327,2]
[351311953,1738511490930,-515.69,0.00012327,2]
[351311954,1738511490940,-653.67,0.00012327,2]
[351311955,1738511490949,-1093.31,0.00012327,2]
[351311956,1738511490959,-1053.18,0.00012327,2]
[351311957,1738511490969,-500.0,0.00012327,2]
[351311958,1738511490979,-1273.51,0.00012327,2]
[351311959,1738511490989,-522.28,0.00012327,2]
[351311960,1738511490999,-1239.31,0.00012327,2]
[351311961,1738511491008,-740.34,0.00012327,2]
[351311962,1738511491018,-500.0,0.00012327,2]
[351311963,1738511491028,-608.26,0.00012327,2]
[351311964,1738511491038,-644.61,0.00012327,2]
[351311965,1738511491048,-913.35,0.00012327,2]
[351311966,1738511491058,-1062.0,0.00012327,2]
[351311967,1738511491067,-1115.18,0.00012327,2]
[351311968,1738511491077,-945.68,0.00012327,2]
[351311969,1738511491086,-607.69,0.00012327,2]
[351311970,1738511491095,-500.0,0.00012327,2]
[351311971,1738511491104,-522.96,0.00012327,2]
[351311972,1738511491114,-1035.26,0.00012327,2]
[351311973,1738511491124,-513.43450636,0.00012327,2]
[351311974,1738511491134,-2196.81,0.00012327,2]
[351311975,1738511491145,-500.0,0.00012327,2]
[351311976,1738511491156,-1325.26,0.00012327,2]
[351311977,1738511491164,-975.31,0.00012327,2]
[351311978,1738511491174,-1985.37,0.00012327,2]
[351311979,1738511491183,-918.08,0.00012327,2]
[351311980,1738511491193,-2083.26,0.00012327,2]
[351311981,1738511491202,-1965.57,0.00012327,2]
[351311982,1738511491211,-1323.45,0.00012327,2]
[351311983,1738511491221,-1635.63,0.00012327,2]
[351311984,1738511491231,-500.0,0.00012327,2]
[351311985,1738511491240,-774.16,0.00012327,2]
[351311986,1738511491250,-5662.33,0.00012327,2]
[351311987,1738511491259,-782.48,0.00012327,2]
[351311988,1738511491269,-7030.17,0.00012327,2]
[351311989,1738511491279,-2514.52,0.00012327,2]
[351311990,1738511491288,-681.48,0.00012327,2]
[351311991,1738511491297,-790.42,0.00012327,2]
[351311992,1738511491307,-3657.25,0.00012327,2]
[351311993,1738511491317,-3049.12,0.00012327,2]
[351311994,1738511491327,-500.0,0.00012327,2]
[351311995,1738511491337,-1745.16,0.00012327,2]
[351311996,1738511491346,-1031.35,0.00012327,2]
[351311997,1738511491356,-1816.81,0.00012327,2]
[351311998,1738511491366,-528.0,0.00012327,2]
[351311999,1738511491376,-602.22,0.00012327,2]
[351312000,1738511491386,-4052.48,0.00012327,2]
[351312001,1738511491395,-500.0,0.00012327,2]
[351312002,1738511491404,-1474.86,0.00012327,2]
[351312003,1738511491413,-4337.5,0.00012327,2]
[351312004,1738511491424,-1297.61,0.00012327,2]
[351312005,1738511491434,-1453.24,0.00012327,2]
[351312006,1738511491443,-1696.27,0.00012327,2]
[351312007,1738511491452,-1292.86,0.00012327,2]
[351312008,1738511491463,-1155.8,0.00012327,2]
[351312009,1738511491473,-734.3,0.00012327,2]
[351312010,1738511491482,-1512.01,0.00012327,2]
[351312011,1738511491492,-1336.03,0.00012327,2]
[351312012,1738511491506,-500.0,0.00012327,2]
[351312013,1738511491515,-686.62,0.00012327,2]
[351312014,1738511491524,-1393.61,0.00012327,2]
[351312015,1738511491534,-500.0,0.00012327,2]
[351312016,1738511491545,-1657.23,0.00012327,2]
[351312017,1738511491554,-1120.37,0.00012327,2]
[351312018,1738511491563,-823.51,0.00012327,2]
[351312019,1738511491574,-500.0,0.00012328,2]
[351312020,1738511491585,-299.46888861,0.00012328,2]
[351312021,1738511491595,-500.0,0.00012328,2]
[351312022,1738511491605,-663.36,0.00012328,2]
[351312023,1738511491615,-500.0,0.00012328,2]
[351312024,1738511491624,-500.0,0.00012328,2]
[351312025,1738511491633,-500.0,0.00012328,2]
[351312026,1738511491643,-500.0,0.00012328,2]
[351312027,1738511491653,-698.15,0.00012328,2]
[351312028,1738511491663,-500.0,0.00012328,2]
[351312029,1738511491674,-500.0,0.00012328,2]
[351312030,1738511491683,-500.0,0.00012328,2]
[351312031,1738511491692,-500.0,0.00012328,2]
[351312032,1738511491702,-500.0,0.00012328,2]
[351312033,1738511491711,-500.0,0.00012328,2]
[351312034,1738511491720,-500.0,0.00012328,2]